Cogmind - Beta 10.2 @@@ ROGUE MODE // 2021.01.10 @ 13:28:22 Player: CrossedViper Result: Destroyed by G-47 Trooper with Particle Gun Performance ------------- Evolutions (0) 0 Regions Visited (2) 400 Robots Destroyed (15) 75 Value Destroyed (340) 340 Prototype IDs (0) 0 Alien Tech Used (0) 0 Bonus (0) 0 TOTAL SCORE: 815 Bonus ------- None Cogmind --------- Core Integrity 0/250 Matter 220/300 Energy 250/250 System Corruption 0% Temperature Cool (9) Movement Treading (220) Ox3 Location -10/Mines Parts ------- > --- POWER (1) -------- Ion Engine > --- PROPULSION (2) --- Light Treads > --- UTILITY (2) ------ High-capacity Storage Unit High-capacity Storage Unit > --- WEAPON (2) ------- (None) > --- INVENTORY (20) --- Small Storage Unit High-capacity Storage Unit High-capacity Storage Unit High-capacity Storage Unit Peak State ------------ > --- POWER ------------ Light Ion Engine > --- PROPULSION ------- Light Treads Light Treads > --- UTILITY ---------- High-capacity Storage Unit High-capacity Storage Unit > --- WEAPON ----------- Small Laser Light Assault Rifle > --- INVENTORY -------- Ion Engine Light Treads Light Treads Wheel Wheel Small Storage Unit Large Storage Unit Large Storage Unit EM Pulse Gun Grenade Launcher [Rating: 8] Favorites ----------- Power Light Ion Engine Engine Light Ion Engine Propulsion Light Treads Treads Light Treads Leg Aluminum Leg Wheel Wheel Utility High-capacity Storage Unit Storage High-capacity Storage Unit Weapon Light Assault Rifle Energy Gun Small Laser Ballistic Gun Light Assault Rifle Launcher Grenade Launcher Build | -11 -10 -10 ------- Run | Scr Mat Min Slots Evolved . | . . . Power . | . . . Propulsion . | . . . Utility . | . . . Weapon . | . . . Parts Attached 24 | . 12 12 Power 2 | . . 2 Engine 2 | . . 2 Core . | . . . Reactor . | . . . Propulsion 7 | . 2 5 Treads 5 | . 2 3 Leg . | . . . Wheel 2 | . . 2 Hover . | . . . Flight . | . . . Utility 4 | . 4 . Device . | . . . Storage 4 | . 4 . Processor . | . . . Hackware . | . . . Protection . | . . . Artifact . | . . . Weapon 11 | . 6 5 Energy Gun 5 | . 1 4 Energy Cannon . | . . . Ballistic Gun 2 | . 2 . Ballistic Cannon . | . . . Launcher 4 | . 3 1 Special Weapon . | . . . Impact Weapon . | . . . Slashing Weapon . | . . . Piercing Weapon . | . . . Special Melee Weapon . | . . . Unidentified Prototypes . | . . . Parts Lost 12 | . . 12 Power 2 | . . 2 Propulsion 5 | . . 5 Utility . | . . . Weapon 5 | . . 5 Highest Loss Streak 9 | . . 9 Average Slot Usage (%) 96 | . 100 91 Engine 13 | . 14 12 Treads 26 | . 27 25 Storage 28 | . 28 28 Energy Gun 12 | . 14 11 Ballistic Gun 12 | . 13 10 Naked Turns . | . . . Heaviest Build 72 | 9 69 72 Greatest Support 40 | 20 40 40 Greatest Overweight (x) 6 | . 1 6 Average Overweight (x) . | . . 1 Largest Inventory Capacity 20 | . 20 20 Average Capacity 19 | . 18 20 Most Carried 13 | . 13 13 Average Carried 10 | . 9 10 Final Capacity 20 | 6 20 20 Final Carried 13 | 6 13 4 Class Distribution -------------------- 77% | Hauler-Mutant 22% | Mutant Dominant Class ---------------- Hauler-Mutant | -10/Materials Hauler-Mutant | -10/Mines Resources | -11 -10 -10 ----------- Run | Scr Mat Min Matter Collected 460 | 200 206 54 Remotely . | . . . Salvage Created 418 | . 302 116 Parts 20 | . 16 4 Haulers Intercepted 2 | . 2 . Recyclers Shooed 3 | . 3 . Parts Field Recycled . | . . . Retrieved Matter . | . . . Parts Self-Destructed . | . . . Prevented . | . . . Kills | -11 -10 -10 ------- Run | Scr Mat Min Combat Hostiles Destroyed 18 | . 9 9 Guns 5 | . 3 2 AOE 13 | . 6 7 Classes Destroyed 6 | . 5 1 Builder 1 | . 1 . Hauler 2 | . 2 . Watcher 1 | . 1 . Swarmer 3 | . 3 . Grunt 8 | . 6 2 Assembled 7 | . . 7 Best Kill Streak 7 | . 5 7 Combat Bots Only 7 | . 3 7 Max Kills in Single Turn 4 | . 3 4 Gunslinging . | . . . Exploded 4 | . 3 4 Melee . | . . . Uniques/NPCs Destroyed . | . . . Combat | -11 -10 -10 -------- Run | Scr Mat Min Damage Taken 1397 | . 259 1138 Core 257 | . 35 222 Absorbed by Shields . | . . . Core Remaining (%) 100 | 100 . . Volleys Fired 53 | . 33 20 Largest 2 | . 2 2 Hottest 60 | . 60 60 Shots Fired 91 | . 58 33 Gun 79 | . 50 29 Cannon . | . . . Launcher 12 | . 8 4 Special . | . . . Kinetic 40 | . 25 15 Thermal 30 | . 25 5 Explosive 12 | . 8 4 Electromagnetic 9 | . . 9 Robot Hit Streak 20 | . 20 12 Robot Miss Streak 3 | . 3 3 Penetration Max . | . . . Secondary Targets 1 | . . 1 Max Gunslinging Chain 1 | . . 1 Shots Hit Robots 65 | . 43 22 Core Hits 52 | . 26 26 Critical Hits 1 | . . 1 Critical Kills . | . . . Critical Parts Destroyed 1 | . . 1 Melee Attacks . | . . . Impact . | . . . Slashing . | . . . Piercing . | . . . Sneak Attacks . | . . . Combat Hostiles . | . . . Follow-up Attacks . | . . . Damage Inflicted 1793 | . 1001 792 Guns 592 | . 361 231 Cannons . | . . . Explosions 1201 | . 640 561 Melee . | . . . Ramming . | . . . Kinetic 210 | . 133 77 Thermal 272 | . 228 44 Explosive 1201 | . 640 561 Electromagnetic 110 | . . 110 Impact . | . . . Slashing . | . . . Piercing . | . . . Highest Corruption . | . . . Average Corruption . | . . . Corruption Purged . | . . . Overload Shots . | . . . Overflow Damage 35 | . 19 16 Projectiles . | . . . Explosions 35 | . 19 16 Melee . | . . . Knockbacks . | . . . Impact . | . . . Kinetic . | . . . Secondary . | . . . Self-Inflicted Damage 42 | . 40 2 Shots 2 | . 1 1 Rammed . | . . . Targets Rammed . | . . . Kicked . | . . . Crushed . | . . . Highest Temperature 128 | . 82 128 Average Temperature 36 | . 27 53 Received Heat Transfer 336 | . 102 234 Siege Activations . | . . . Robots Corrupted . | . . . Combat Hostiles . | . . . Parts Fried 1 | . . 1 Impact Corruptions . | . . . Robots Melted . | . . . Combat Hostiles . | . . . Parts Melted . | . . . Heat Transferred 600 | . 500 100 Parts Sabotaged . | . . . Parts Stolen . | . . . Parts Stripped . | . . . Power Chain Reactions . | . . . Missiles Intercepted . | . . . Alert | -11 -10 -10 ------- Run | Scr Mat Min Peak Influence 226 | . 226 91 Initial 46 | . . 46 Average 75 | . 94 44 Maximum Alert Level 1 | . 1 . Low Security (%) 97 | . 96 100 Level 1 2 | . 3 . Level 2 . | . . . Level 3 . | . . . Level 4 . | . . . Level 5 . | . . . High Security . | . . . Max Security . | . . . Squads Dispatched 3 | . 3 . Investigation 1 | . 1 . Extermination . | . . . Reinforcement 2 | . 2 . Assault . | . . . Garrison . | . . . Intercept . | . . . Construction Impeded . | . . . Haulers Reinforced . | . . . Stealth | -11 -10 -10 --------- Run | Scr Mat Min Distress Signals 1 | . 1 . Communications Jammed . | . . . Distress Signals . | . . . Times Spotted 39 | . 17 22 Peak Tracking Total 15 | . 4 15 Tactical Retreats 3 | . . 3 Traps | -11 -10 -10 ------- Run | Scr Mat Min Traps Triggered . | . . . Indirectly . | . . . Trap Hack Attempts . | . . . Triggered . | . . . Disarmed . | . . . Reprogrammed . | . . . Reused . | . . . Traps Extracted . | . . . Installed . | . . . Triggered . | . . . Machines | -11 -10 -10 ---------- Run | Scr Mat Min Machines Disabled . | . . . Max in Single Turn . | . . . Machines Sabotaged . | . . . Garrisons Compromised . | . . . Overloaded Fab Kills . | . . . Fab Network Shutdowns . | . . . Hacking | -11 -10 -10 --------- Run | Scr Mat Min Machines Accessed 4 | . 4 . Terminals 3 | . 3 . Fabricators . | . . . Repair Stations . | . . . Recycling Units 1 | . 1 . Scanalyzers . | . . . Garrison Access . | . . . Total Hacks 10 | . 10 . Successful 6 | . 6 . Failed 4 | . 4 . Catastrophic . | . . . Database Lockouts . | . . . Manual 11 | . 11 . Terminals 8 | . 8 . Fabricators . | . . . Repair Stations . | . . . Recycling Units 2 | . 2 . Scanalyzers . | . . . Garrison Access . | . . . Terminal Hacks 4 | . 4 . Robot Analysis 4 | . 4 . Fabricator Hacks . | . . . Repair Station Hacks . | . . . Recycling Unit Hacks . | . . . Scanalyzer . | . . . Garrison Access Hacks . | . . . Unauthorized Hacks 2 | . 2 . Terminals 1 | . 1 . Track 1 | . 1 . Fabricators . | . . . Repair Stations . | . . . Recycling Units 1 | . 1 . Tunnel 1 | . 1 . Scanalyzers . | . . . Garrison Access . | . . . Data Cores Recovered . | . . . Used . | . . . Hacking Detections 4 | . 4 . Full Trace Events 1 | . 1 . Feedback Events . | . . . Feedback Blocked . | . . . Robot Schematics Acquired . | . . . Robots Built . | . . . Matter . | . . . Time . | . . . Total Robot Build Rating . | . . . Part Schematics Acquired . | . . . Parts Built . | . . . Matter . | . . . Time . | . . . Total Part Build Rating . | . . . Parts Repaired . | . . . Time . | . . . Parts Recycled . | . . . Recycled Matter . | . . . Retrieved Matter . | . . . Retrieved Components . | . . . Parts Scanalyzed . | . . . Part Schematics Acquired . | . . . Parts Damaged . | . . . Bothacking | -11 -10 -10 ------------ Run | Scr Mat Min Used RIF Installer . | . . . Robots Hacked . | . . . Non-combat . | . . . Combat . | . . . Robot Hacks Applied . | . . . Relay Couplers Released . | . . . Robots Rewired . | . . . Allies Hacked . | . . . Hacks Repelled . | . . . Allies | -11 -10 -10 -------- Run | Scr Mat Min Total Allies . | . . . Largest Group . | . . . Highest-Rated Group . | . . . Highest-Rated Ally . | . . . Total Orders . | . . . Ally Attacks . | . . . Total Damage . | . . . Kills . | . . . Allies Corrupted . | . . . Allies Melted . | . . . Intel | -11 -10 -10 ------- Run | Scr Mat Min Robot Analysis Total 4 | . 4 . Derelict Logs Recovered 1 | . . 1 Drone Launches . | . . . Drone Recoveries . | . . . Exploration | -11 -10 -10 ------------- Run | Scr Mat Min Turns Passed 1057 | . 659 398 Spaces Moved 488 | 1 300 187 Core . | . . . Treads 462 | . 294 168 Legs 7 | 1 6 . Wheels 19 | . . 19 Hover . | . . . Flight . | . . . Fastest Speed 110 | 120 120 110 Average Speed 173 | 120 172 175 Slowest Speed 220 | 120 180 220 Overloaded Moves . | . . . Propulsion Burnouts . | . . . Robots Hopped . | . . . Cave-ins Triggered . | . . . Exploration Rate (%) 35 | 2 52 53 Regions Visited 2 Branch Regions 1 Pre-discovered Areas 1 | . 1 . Known Exits Taken . | . . . Unknown Exits Taken 2 | 1 1 . Scrap Searched . | . . . Spaces Dug 14 | . . 14 Terrain Destroyed 65 | . 36 29 Melee . | . . . Projectile . | . . . AOE 65 | . 36 29 Terrain Rammed . | . . . Walls Destroyed . | . . . Machines Disabled . | . . . Actions | -11 -10 -10 --------- Run | Scr Mat Min Total 612 | . 386 226 Wait 35 | . 30 5 Move 486 | . 299 187 Hop . | . . . Pick Up 9 | . 8 1 Fast Attach 1 | . 1 . Attach 11 | . 2 9 Detach . | . . . Swap 12 | . 9 3 Drop 5 | . 4 1 Fire 53 | . 33 20 Melee . | . . . Ram . | . . . Kick . | . . . Crush . | . . . Escape Stasis . | . . . Rewire . | . . . Trap . | . . . Miscellaneous . | . . . Route ------- -11/Scrapyard -10/Materials (discovered 2 exits: [*Mat] / [*Min]) -10/Mines History --------- Turn | Location | Event 1 | -11/Scrapyard | Discovered new exit (range 0) 1 | -11/Scrapyard | Entered Materials 293 | -10/Materials | Discovered new exit (range 15) 538 | -10/Materials | Build established: Hauler-Mutant 590 | -10/Materials | Discovered new exit (range 16) 660 | -10/Materials | Entered Mines 937 | -10/Mines | Learned Materials trap positions 945 | -10/Mines | Assembled infested the area 950 | -10/Mines | Assisted by a Guerilla fighting off Assembled 978 | -10/Mines | Destroyed 7 combat bots 980 | -10/Mines | Core integrity fell below 50% 1026 | -10/Mines | Core integrity fell below 20% 1031 | -10/Mines | Lost 9 parts (1p4n4w) 1058 | -10/Mines | Destroyed by G-47 Trooper with Particle Gun Last Messages --------------- 00989_ as-10661 destroyed. 00991_ The unstable cave ceiling collapses. 00992_ as-07343 destroyed. 00992_ D-53 Grenadier destroyed. 00994_ Lgt. Treads destroyed. 00996_ The unstable cave ceiling collapses. 00996_ D-53 Grenadier destroyed. 00998_ The unstable cave ceiling collapses. 00998_ U-05 Engineer lays Concrete. 00999_ K-01 Serf collects debris. 01000_ EM Pulse Gun destroyed. 01000_ U-05 Engineer lays Concrete. 01003_ K-01 Serf collects debris. 01004_ U-05 Engineer builds a Wall. 01005_ The unstable cave ceiling collapses. 01008_ U-05 Engineer builds a Wall. 01008_ R-06 Scavenger suffers critical hit. 01008_ R-06 Scavenger destroyed. 01010_ The unstable cave ceiling collapses. 01031_ Lgt. Treads destroyed. Map ----- +----------------------------------------------------+ | % #??????????#### ### ###### | | # ##?????????????# ### #?????? # | | # # #?????????????# #???????? | | ##### #?## # ##?????????????##### #???????? | | ##??# % #### # #??????????????????# #???????? | | #???# #??### # #?#######??????????# #???????? | | ???# ???## ##### ##?????????# #???????? | | ??? #???# ########### #???????? | | ?? #???# #???????? | | ?? #???######## ########## ###???????? | | ?# ##?????????## ##????????# #?????????? | | ?# ###?????????## ##?????????# #?????????? | | ?#% ###??????????## #??????????# #?????????? | | ? #?????????##### #??????????# #?????????? | | ? #??????##### ##??????????# ?????????? | | #?????# ##???????????###?????????? | | ??????# ##### ## # ##????????????????????????? | | ?? ????????????#??# ####?????????????????????????? | | ??????????????????# #?######?????????????????????? | | ??????????????????# ### ######????????????????? | | ??????????????????# ## ##???????????????? | | ??????????????????# #???????????????? | | ??????????????????#####g #???????????????? | | ??????????????????????##g ##???????????????? | | ??????????????????????## ##????????????????? | | ??????????????????????# @ ##?????????????????? | | ??????????????????????# #??????????????????? | | ??????????????????????# u#?????????????????? | | ??????????????????????## r???????????????? | | ???????????????????????### k #?????????????? | | ??????????????????????????# #????????????? | | ??????????????????????????? #???????????? | | ??????????????????????????? ???????????? | | ??????????????????????????? ???????????? | | ???????????????????????????? ???????????? | | ???????????????????????????? ????????????? | | ????????????????????????????# ## #????????????? | | ?????????????????????????????u#?# ??????????????? | | ????????????????????????????? #??????????????????? | | ?????????????????????????????????????????????????? | | ?????????????????????????????????????????????????? | | ?????????????????????????????????????????????????? | | ?????????????????????????????????????????????????? | | ?????????????????????????????????????????????????? | | ?????????????????????????????????????????????????? | | ?????????????????????????????????????????????????? | | ?????????????????????????????????????????????????? | | ?????????????????????????????????????????????????? | | ?????????????????????????????????????????????????? | | ?????????????????????????????????????????????????? | +----------------------------------------------------+ Best States ------------- Heat Dissipation 25 Energy Generation 10 Energy Capacity 250 Matter Stores 300 Matter Capacity 300 Sight Range 16 Terrain Scan Density 10 Evasion (%) 40 Recoil Reduction 2 Item Schematics ----------------- None Robot Schematics ------------------ None Fabricated ------------ Nothing Alien Tech Used ----------------- None Achievements -------------- None Challenges ------------ None Game ------ Seed TargetAbsorptionDissipator Manual? 0 Play Time 00:08:45 Cumulative 237.6 hours Start 2021.01.10 @ 13:22:10 End 2021.01.10 @ 13:28:22 Sessions 1 Manual Loads 0 Difficulty Rogue Special Mode None Game No. 214 Rogue 207 Adventurer 0 Explorer 7 Win Type - Total 5 Types 1/0/4/0/0/0/0/0/0 Lore% 72 Gallery% 91 Achievement% 69 Wizard Run 0 Options --------- ASCII 0 Keyboard 0 Movement Numpad Keybinds 0 Fullscreen 1 Font 18/X11 Map View 76x50 Tactical HUD 1 Map Filters NONE Filters NONE Steam 1 RUN: 4dc59d81-307c-4150-8311-83eba3a86b50